[Event "*** Titled Tuesday Blitz"]
[Site "Chess.com"]
[Date "2021.03.09"]
[Round "3"]
[White "SanchezKelvin"]
[Black "Slovak_fighter2000"]
[Result "0-1"]
[WhiteElo "2595"]
[BlackElo "2430"]
[TimeControl "180+1"]
[EndTime "10:26:43 PST"]
[Termination "Slovak_fighter2000 won by resignation"]

1. e4 {[%clk 0:03:00.9]} 1... e6 {[%clk 0:02:54.5]} 2. d4 {[%clk 0:03:00.4]}
2... d5 {[%clk 0:02:54.4]} 3. Nd2 {[%clk 0:03:00.3]} 3... Nc6 {[%clk 0:02:51.7]}
4. Ngf3 {[%clk 0:02:59.5]} 4... Nf6 {[%clk 0:02:50.9]} 5. e5 {[%clk 0:02:59.7]}
5... Nd7 {[%clk 0:02:51.2]} 6. Bb5 {[%clk 0:03:00.3]} 6... a6 {[%clk 0:02:49.2]}
7. Bd3 {[%clk 0:02:52.9]} 7... Nb4 {[%clk 0:02:48]} 8. O-O {[%clk 0:02:49.4]}
8... c5 {[%clk 0:02:48.5]} 9. dxc5 {[%clk 0:02:47.5]} 9... Bxc5 {[%clk
0:02:47.4]} 10. Nb3 {[%clk 0:02:46.9]} 10... Nxd3 {[%clk 0:02:45]} 11. cxd3
{[%clk 0:02:43.1]} 11... Be7 {[%clk 0:02:45.4]} 12. Be3 {[%clk 0:02:41.5]} 12...
O-O {[%clk 0:02:44.6]} 13. Rc1 {[%clk 0:02:40.6]} 13... b6 {[%clk 0:02:42.3]}
14. Qc2 {[%clk 0:02:39]} 14... Bb7 {[%clk 0:02:42.2]} 15. Qc7 {[%clk 0:02:38.3]}
15... Rb8 {[%clk 0:02:31.2]} 16. Qxd8 {[%clk 0:02:29.7]} 16... Rfxd8 {[%clk
0:02:23.4]} 17. Rc2 {[%clk 0:02:29.3]} 17... d4 {[%clk 0:02:16.7]} 18. Nbxd4
{[%clk 0:02:24]} 18... Nc5 {[%clk 0:02:11.2]} 19. Rd1 {[%clk 0:02:19.8]} 19...
Rbc8 {[%clk 0:02:06.3]} 20. b4 {[%clk 0:02:08.5]} 20... Na4 {[%clk 0:02:03.4]}
21. Rxc8 {[%clk 0:02:03]} 21... Rxc8 {[%clk 0:02:02.3]} 22. Rc1 {[%clk
0:02:00.5]} 22... Rxc1+ {[%clk 0:02:00.7]} 23. Bxc1 {[%clk 0:02:00.2]} 23...
Bxb4 {[%clk 0:02:00.6]} 24. a3 {[%clk 0:01:53.9]} 24... Bc5 {[%clk 0:01:57.6]}
25. Kf1 {[%clk 0:01:50.9]} 25... Nc3 {[%clk 0:01:54.3]} 26. Ne2 {[%clk
0:01:46.2]} 26... Nb5 {[%clk 0:01:40]} 27. a4 {[%clk 0:01:42.8]} 27... Bxf3
{[%clk 0:01:38.6]} 28. gxf3 {[%clk 0:01:41.7]} 28... Nd4 {[%clk 0:01:39.2]} 29.
Nxd4 {[%clk 0:01:37.2]} 29... Bxd4 {[%clk 0:01:40.1]} 30. Be3 {[%clk 0:01:36.7]}
30... Bxe5 {[%clk 0:01:38.8]} 31. Bxb6 {[%clk 0:01:35]} 31... Bxh2 {[%clk
0:01:38.6]} 32. Ke2 {[%clk 0:01:33.5]} 32... Kf8 {[%clk 0:01:36.8]} 33. Ke3
{[%clk 0:01:33.8]} 33... Bd6 {[%clk 0:01:35.9]} 34. Kd4 {[%clk 0:01:29.2]} 34...
Ke8 {[%clk 0:01:35.7]} 35. Kc4 {[%clk 0:01:28.5]} 35... Kd7 {[%clk 0:01:35.5]}
36. Ba5 {[%clk 0:01:24.8]} 36... Kc6 {[%clk 0:01:35.2]} 37. Bd2 {[%clk 0:01:24]}
37... h5 {[%clk 0:01:35.4]} 38. Kd4 {[%clk 0:01:19.7]} 38... h4 {[%clk
0:01:34.4]} 0-1

[Event "*** Titled Tuesday Blitz"]
[Site "Chess.com"]
[Date "2021.03.09"]
[Round "3"]
[White "m_ezat"]
[Black "AniJak"]
[Result "1-0"]
[WhiteElo "2530"]
[BlackElo "2324"]
[TimeControl "180+1"]
[EndTime "10:26:47 PST"]
[Termination "m_ezat won by checkmate"]

1. d4 {[%clk 0:03:00.9]} 1... d5 {[%clk 0:02:59.1]} 2. Nf3 {[%clk 0:02:59.4]}
2... Nf6 {[%clk 0:02:58.2]} 3. e3 {[%clk 0:02:59.6]} 3... c6 {[%clk 0:02:55.1]}
4. c4 {[%clk 0:02:59.4]} 4... e6 {[%clk 0:02:54.1]} 5. Nc3 {[%clk 0:02:58.9]}
5... Nbd7 {[%clk 0:02:53.8]} 6. Bd3 {[%clk 0:02:58.3]} 6... dxc4 {[%clk
0:02:53.1]} 7. Bxc4 {[%clk 0:02:58.9]} 7... b5 {[%clk 0:02:53.3]} 8. Bd3 {[%clk
0:02:59.2]} 8... a6 {[%clk 0:02:52.7]} 9. e4 {[%clk 0:02:58.9]} 9... c5 {[%clk
0:02:52.8]} 10. e5 {[%clk 0:02:58.5]} 10... cxd4 {[%clk 0:02:52.8]} 11. Nxb5
{[%clk 0:02:58.8]} 11... axb5 {[%clk 0:02:52.9]} 12. exf6 {[%clk 0:02:58.8]}
12... gxf6 {[%clk 0:02:53.1]} 13. O-O {[%clk 0:02:57.2]} 13... Qb6 {[%clk
0:02:52.5]} 14. Qe2 {[%clk 0:02:57.4]} 14... b4 {[%clk 0:02:46.7]} 15. Bf4
{[%clk 0:02:57.7]} 15... Bb7 {[%clk 0:02:44.6]} 16. Bg3 {[%clk 0:02:54.7]} 16...
Bc5 {[%clk 0:02:36.4]} 17. a4 {[%clk 0:02:41.7]} 17... bxa3 {[%clk 0:02:29.8]}
18. bxa3 {[%clk 0:02:41.6]} 18... Rxa3 {[%clk 0:02:26.8]} 19. Rxa3 {[%clk
0:02:39.4]} 19... Bxa3 {[%clk 0:02:27.1]} 20. Rb1 {[%clk 0:02:39.4]} 20... Bxf3
{[%clk 0:01:50.7]} 21. Qxf3 {[%clk 0:02:33.1]} 21... Qa7 {[%clk 0:01:44]} 22.
Qc6 {[%clk 0:02:14.7]} 22... O-O {[%clk 0:01:22]} 23. Rb7 {[%clk 0:02:07.3]}
23... Qc5 {[%clk 0:01:21.4]} 24. Qxd7 {[%clk 0:01:58.7]} 24... Qc1+ {[%clk
0:01:20.7]} 25. Bf1 {[%clk 0:01:58.7]} 25... e5 {[%clk 0:01:12]} 26. Bh4 {[%clk
0:01:46.8]} 26... Qf4 {[%clk 0:00:56.1]} 27. g3 {[%clk 0:01:43.4]} 27... Qf3
{[%clk 0:00:51.6]} 28. Rb3 {[%clk 0:01:40.2]} 28... Qxb3 {[%clk 0:00:48.3]} 29.
Qg4+ {[%clk 0:01:39.3]} 29... Kh8 {[%clk 0:00:47.8]} 30. Bxf6# {[%clk
0:01:39.2]} 1-0

[Event "*** Titled Tuesday Blitz"]
[Site "Chess.com"]
[Date "2021.03.09"]
[Round "3"]
[White "Semen_Khanin"]
[Black "albi1999"]
[Result "1-0"]
[WhiteElo "2836"]
[BlackElo "2594"]
[TimeControl "180+1"]
[EndTime "10:26:49 PST"]
[Termination "Semen_Khanin won by checkmate"]

1. e4 {[%clk 0:03:00.9]} 1... e5 {[%clk 0:02:57.6]} 2. Nf3 {[%clk 0:03:01]} 2...
Nc6 {[%clk 0:02:57.2]} 3. Bc4 {[%clk 0:03:01.7]} 3... Bc5 {[%clk 0:02:56.1]} 4.
O-O {[%clk 0:03:01.4]} 4... Nf6 {[%clk 0:02:56]} 5. d3 {[%clk 0:03:01.9]} 5...
d6 {[%clk 0:02:55.5]} 6. c3 {[%clk 0:03:02.4]} 6... a6 {[%clk 0:02:55.8]} 7. Bb3
{[%clk 0:03:02.1]} 7... Ba7 {[%clk 0:02:56.1]} 8. Nbd2 {[%clk 0:03:01.5]} 8...
h6 {[%clk 0:02:55.3]} 9. Re1 {[%clk 0:03:01.6]} 9... O-O {[%clk 0:02:50.1]} 10.
h3 {[%clk 0:03:01.4]} 10... Be6 {[%clk 0:02:44.8]} 11. Bc2 {[%clk 0:03:01]}
11... d5 {[%clk 0:02:32.8]} 12. exd5 {[%clk 0:02:59.4]} 12... Nxd5 {[%clk
0:02:32.2]} 13. Nxe5 {[%clk 0:02:45.6]} 13... Nxe5 {[%clk 0:01:58.8]} 14. Rxe5
{[%clk 0:02:45.2]} 14... c5 {[%clk 0:01:58.2]} 15. Nf3 {[%clk 0:02:42.9]} 15...
Bb8 {[%clk 0:01:57.4]} 16. Re1 {[%clk 0:02:40.9]} 16... Bc7 {[%clk 0:01:52.2]}
17. d4 {[%clk 0:02:39.4]} 17... cxd4 {[%clk 0:01:52.3]} 18. Qxd4 {[%clk
0:02:38.9]} 18... Qd6 {[%clk 0:01:47.3]} 19. Ne5 {[%clk 0:02:06.3]} 19... Rad8
{[%clk 0:01:37.7]} 20. Qe4 {[%clk 0:01:50.8]} 20... Nf6 {[%clk 0:01:21.7]} 21.
Qh4 {[%clk 0:01:50.6]} 21... Qd5 {[%clk 0:01:14.2]} 22. Bxh6 {[%clk 0:01:37.8]}
22... Bxe5 {[%clk 0:01:13.1]} 23. Bxg7 {[%clk 0:01:37.9]} 23... Rfe8 {[%clk
0:00:34.6]} 24. Qh8# {[%clk 0:01:36.7]} 1-0

[Event "*** Titled Tuesday Blitz"]
[Site "Chess.com"]
[Date "2021.03.09"]
[Round "3"]
[White "andrewtnb"]
[Black "axvesik"]
[Result "1/2-1/2"]
[WhiteElo "2329"]
[BlackElo "2520"]
[TimeControl "180+1"]
[EndTime "10:26:51 PST"]
[Termination "Game drawn by agreement"]

1. d4 {[%clk 0:02:59]} 1... Nf6 {[%clk 0:02:57.7]} 2. c4 {[%clk 0:02:58.6]} 2...
e6 {[%clk 0:02:58.6]} 3. Nc3 {[%clk 0:02:58.1]} 3... Bb4 {[%clk 0:02:58.5]} 4.
e3 {[%clk 0:02:58.4]} 4... O-O {[%clk 0:02:58.1]} 5. Ne2 {[%clk 0:02:57.6]} 5...
d5 {[%clk 0:02:58.1]} 6. a3 {[%clk 0:02:58]} 6... Be7 {[%clk 0:02:55.9]} 7. cxd5
{[%clk 0:02:58.1]} 7... exd5 {[%clk 0:02:55.9]} 8. Ng3 {[%clk 0:02:58.6]} 8...
Re8 {[%clk 0:02:30.5]} 9. Be2 {[%clk 0:02:51.6]} 9... Nbd7 {[%clk 0:02:30.1]}
10. O-O {[%clk 0:02:49.9]} 10... c5 {[%clk 0:02:29.9]} 11. dxc5 {[%clk
0:02:48.7]} 11... Nxc5 {[%clk 0:02:29.5]} 12. b4 {[%clk 0:02:49]} 12... Nce4
{[%clk 0:02:22.4]} 13. Bb2 {[%clk 0:02:48.3]} 13... Be6 {[%clk 0:02:18.6]} 14.
Bb5 {[%clk 0:02:39.6]} 14... Bd7 {[%clk 0:02:14.4]} 15. Bxd7 {[%clk 0:02:31.8]}
15... Qxd7 {[%clk 0:02:13.4]} 16. Nxd5 {[%clk 0:02:26.6]} 16... Qxd5 {[%clk
0:02:06]} 17. Qxd5 {[%clk 0:02:25.2]} 17... Nxd5 {[%clk 0:02:06.2]} 18. Nxe4
{[%clk 0:02:25]} 18... Bxb4 {[%clk 0:02:06.7]} 19. axb4 {[%clk 0:02:13.3]} 19...
Rxe4 {[%clk 0:02:01.4]} 20. Bd4 {[%clk 0:01:53.4]} 20... Nxb4 {[%clk 0:01:53.4]}
21. Rfb1 {[%clk 0:00:53.1]} 21... Nc6 {[%clk 0:01:38.5]} 22. Rxb7 {[%clk
0:00:47.6]} 22... Nxd4 {[%clk 0:01:35.5]} 23. exd4 {[%clk 0:00:48.5]} 23... Rxd4
{[%clk 0:01:31.3]} 24. g3 {[%clk 0:00:42.5]} 24... g6 {[%clk 0:01:26.2]} 25.
Raxa7 {[%clk 0:00:41.5]} 25... Rxa7 {[%clk 0:01:26.6]} 1/2-1/2

[Event "*** Titled Tuesday Blitz"]
[Site "Chess.com"]
[Date "2021.03.09"]
[Round "3"]
[White "sau6on"]
[Black "volunteers1998"]
[Result "1-0"]
[WhiteElo "2504"]
[BlackElo "2189"]
[TimeControl "180+1"]
[EndTime "10:27:08 PST"]
[Termination "sau6on won by resignation"]

1. e4 {[%clk 0:03:00.9]} 1... c5 {[%clk 0:02:56.8]} 2. Nf3 {[%clk 0:03:00]} 2...
Nc6 {[%clk 0:02:54.5]} 3. d4 {[%clk 0:03:00.2]} 3... cxd4 {[%clk 0:02:53.1]} 4.
Nxd4 {[%clk 0:02:59.4]} 4... Nf6 {[%clk 0:02:52.3]} 5. Nc3 {[%clk 0:02:59.4]}
5... e5 {[%clk 0:02:51.6]} 6. Ndb5 {[%clk 0:02:58.8]} 6... d6 {[%clk 0:02:50.1]}
7. Bg5 {[%clk 0:02:56.6]} 7... a6 {[%clk 0:02:48.9]} 8. Na3 {[%clk 0:02:56.4]}
8... b5 {[%clk 0:02:48.1]} 9. Bxf6 {[%clk 0:02:51.4]} 9... gxf6 {[%clk
0:02:46.6]} 10. Nd5 {[%clk 0:02:51.9]} 10... f5 {[%clk 0:02:45.1]} 11. c3 {[%clk
0:02:51.2]} 11... Be6 {[%clk 0:02:38.6]} 12. exf5 {[%clk 0:02:50]} 12... Bxf5
{[%clk 0:02:36.2]} 13. Nc2 {[%clk 0:02:50.1]} 13... Bg7 {[%clk 0:02:29.2]} 14.
Nce3 {[%clk 0:02:50]} 14... Be6 {[%clk 0:02:27.6]} 15. a4 {[%clk 0:02:43.8]}
15... bxa4 {[%clk 0:02:15.1]} 16. Qxa4 {[%clk 0:02:41.5]} 16... Rc8 {[%clk
0:02:10.2]} 17. Bxa6 {[%clk 0:02:38.6]} 17... O-O {[%clk 0:02:07.1]} 18. Bxc8
{[%clk 0:02:36]} 18... Qxc8 {[%clk 0:02:05.3]} 19. Qxc6 {[%clk 0:02:35]} 19...
Qxc6 {[%clk 0:02:04.1]} 20. Ne7+ {[%clk 0:02:34.1]} 20... Kh8 {[%clk 0:02:02.8]}
21. Nxc6 {[%clk 0:02:34.6]} 21... Rc8 {[%clk 0:02:01.1]} 22. Nb4 {[%clk
0:02:33.3]} 22... f5 {[%clk 0:01:50.7]} 23. Ra6 {[%clk 0:02:19.2]} 23... Bf8
{[%clk 0:01:46.6]} 24. O-O {[%clk 0:02:14.1]} 24... f4 {[%clk 0:01:44.2]} 25.
Ned5 {[%clk 0:02:14.1]} 25... Kg7 {[%clk 0:01:40.4]} 26. Rfa1 {[%clk 0:02:07.6]}
26... Rc5 {[%clk 0:01:28.3]} 27. Ra7+ {[%clk 0:01:56.5]} 27... Kg6 {[%clk
0:01:22]} 28. Rd1 {[%clk 0:01:49.1]} 28... Kf5 {[%clk 0:01:10.6]} 29. Rxh7
{[%clk 0:01:43.3]} 29... Kg6 {[%clk 0:01:08.7]} 30. Ra7 {[%clk 0:01:37.6]} 30...
Bf5 {[%clk 0:00:55.5]} 31. Ne7+ {[%clk 0:01:34.5]} 31... Bxe7 {[%clk 0:00:53.7]}
32. Rxe7 {[%clk 0:01:34]} 32... Kf6 {[%clk 0:00:51.8]} 33. Ra7 {[%clk
0:01:31.3]} 33... e4 {[%clk 0:00:48.1]} 34. Rxd6+ {[%clk 0:01:25.3]} 1-0

[Event "*** Titled Tuesday Blitz"]
[Site "Chess.com"]
[Date "2021.03.09"]
[Round "3"]
[White "TooOldTooSlow70"]
[Black "barbara25"]
[Result "0-1"]
[WhiteElo "2498"]
[BlackElo "2262"]
[TimeControl "180+1"]
[EndTime "10:27:19 PST"]
[Termination "barbara25 won by checkmate"]

1. Nf3 {[%clk 0:03:00.9]} 1... Nf6 {[%clk 0:02:58]} 2. c4 {[%clk 0:03:00.1]}
2... e6 {[%clk 0:02:57.8]} 3. Nc3 {[%clk 0:02:54]} 3... c6 {[%clk 0:02:56.2]} 4.
e4 {[%clk 0:02:50.4]} 4... d6 {[%clk 0:02:55.9]} 5. d4 {[%clk 0:02:49.8]} 5...
Be7 {[%clk 0:02:56]} 6. Bd3 {[%clk 0:02:49.6]} 6... O-O {[%clk 0:02:56]} 7. Qc2
{[%clk 0:02:49.7]} 7... h6 {[%clk 0:02:50.9]} 8. e5 {[%clk 0:02:45.1]} 8... dxe5
{[%clk 0:02:50.1]} 9. dxe5 {[%clk 0:02:46]} 9... Nfd7 {[%clk 0:02:50.2]} 10. g4
{[%clk 0:02:45.5]} 10... c5 {[%clk 0:02:46.6]} 11. Bf4 {[%clk 0:02:42.8]} 11...
Nc6 {[%clk 0:02:46.6]} 12. h4 {[%clk 0:02:39.2]} 12... Nd4 {[%clk 0:02:46.4]}
13. Nxd4 {[%clk 0:02:38.6]} 13... cxd4 {[%clk 0:02:46.8]} 14. Ne4 {[%clk
0:02:39.2]} 14... Qa5+ {[%clk 0:02:38.3]} 15. Ke2 {[%clk 0:02:36.4]} 15... Nxe5
{[%clk 0:02:37]} 16. b4 {[%clk 0:02:27.4]} 16... Qc7 {[%clk 0:02:35.3]} 17. g5
{[%clk 0:02:22]} 17... h5 {[%clk 0:02:35]} 18. Rag1 {[%clk 0:02:04.7]} 18...
Bxb4 {[%clk 0:02:30.3]} 19. Nf6+ {[%clk 0:02:01.5]} 19... Kh8 {[%clk 0:02:23.5]}
20. Nxh5 {[%clk 0:01:44.2]} 20... Bd6 {[%clk 0:02:18.6]} 21. g6 {[%clk
0:00:43.5]} 21... Nxd3 {[%clk 0:02:03.7]} 22. Qxd3 {[%clk 0:00:30.7]} 22... Bxf4
{[%clk 0:02:02]} 23. gxf7 {[%clk 0:00:30.6]} 23... Qe5+ {[%clk 0:01:54.7]} 24.
Kd1 {[%clk 0:00:27.1]} 24... Qxh5+ {[%clk 0:01:54.6]} 25. Kc2 {[%clk 0:00:24.5]}
25... e5 {[%clk 0:01:54.3]} 26. Kb3 {[%clk 0:00:19.6]} 26... Bf5 {[%clk
0:01:53.7]} 27. Qf1 {[%clk 0:00:17.4]} 27... Qf3+ {[%clk 0:01:52.4]} 28. Kb4
{[%clk 0:00:16.3]} 28... Qc3+ {[%clk 0:01:50.7]} 29. Kc5 {[%clk 0:00:16.1]}
29... Rac8+ {[%clk 0:01:49]} 30. Kd6 {[%clk 0:00:16.7]} 30... e4+ {[%clk
0:01:48.1]} 31. Ke7 {[%clk 0:00:15.5]} 31... Qb4+ {[%clk 0:01:46.4]} 32. c5
{[%clk 0:00:13]} 32... Qxc5# {[%clk 0:01:46.3]} 0-1

[Event "*** Titled Tuesday Blitz"]
[Site "Chess.com"]
[Date "2021.03.09"]
[Round "3"]
[White "redblizzard"]
[Black "nrvisakh"]
[Result "0-1"]
[WhiteElo "2456"]
[BlackElo "2769"]
[TimeControl "180+1"]
[EndTime "10:27:24 PST"]
[Termination "nrvisakh won by checkmate"]

1. e4 {[%clk 0:03:00.9]} 1... c5 {[%clk 0:02:58.1]} 2. Nf3 {[%clk 0:03:00.9]}
2... e6 {[%clk 0:02:57.3]} 3. d4 {[%clk 0:02:59.6]} 3... cxd4 {[%clk 0:02:57.6]}
4. Nxd4 {[%clk 0:03:00.5]} 4... a6 {[%clk 0:02:55.5]} 5. Bd3 {[%clk 0:03:00.2]}
5... Qc7 {[%clk 0:02:48.1]} 6. O-O {[%clk 0:02:58.2]} 6... Nf6 {[%clk 0:02:48]}
7. c4 {[%clk 0:02:38.7]} 7... Nc6 {[%clk 0:02:41.2]} 8. Nxc6 {[%clk 0:02:37.5]}
8... dxc6 {[%clk 0:02:42.1]} 9. Nc3 {[%clk 0:02:37.3]} 9... e5 {[%clk
0:02:41.7]} 10. Be3 {[%clk 0:02:19.9]} 10... Ng4 {[%clk 0:02:39.2]} 11. Bg5
{[%clk 0:02:15.7]} 11... h6 {[%clk 0:02:35.2]} 12. Bc1 {[%clk 0:02:15.4]} 12...
Bc5 {[%clk 0:02:33.5]} 13. Qe2 {[%clk 0:02:04.3]} 13... Be6 {[%clk 0:02:30.5]}
14. h3 {[%clk 0:01:57.3]} 14... Nf6 {[%clk 0:02:30.4]} 15. Be3 {[%clk
0:01:55.5]} 15... Bxe3 {[%clk 0:02:27.2]} 16. Qxe3 {[%clk 0:01:56.4]} 16... Rd8
{[%clk 0:02:24.7]} 17. c5 {[%clk 0:01:50.7]} 17... O-O {[%clk 0:02:21.7]} 18. b4
{[%clk 0:01:47.8]} 18... Rd4 {[%clk 0:02:17.7]} 19. a3 {[%clk 0:01:45.5]} 19...
Rfd8 {[%clk 0:02:17]} 20. Be2 {[%clk 0:01:38.9]} 20... a5 {[%clk 0:02:10.9]} 21.
Rab1 {[%clk 0:01:33.7]} 21... Bc4 {[%clk 0:02:10.2]} 22. Bxc4 {[%clk 0:01:09.1]}
22... Rxc4 {[%clk 0:02:11.1]} 23. f4 {[%clk 0:01:09.1]} 23... exf4 {[%clk
0:02:06.8]} 24. Qf3 {[%clk 0:01:09.2]} 24... Rdd4 {[%clk 0:02:04.2]} 25. bxa5
{[%clk 0:01:04.3]} 25... Rxc5 {[%clk 0:02:00.3]} 26. Ne2 {[%clk 0:00:58.7]}
26... Rxe4 {[%clk 0:01:58.6]} 27. Nxf4 {[%clk 0:00:59.1]} 27... Rf5 {[%clk
0:01:52.4]} 28. g3 {[%clk 0:00:47.1]} 28... g5 {[%clk 0:01:52]} 29. Nd5 {[%clk
0:00:44.1]} 29... cxd5 {[%clk 0:01:38]} 30. Qxf5 {[%clk 0:00:43.1]} 30... Qxg3+
{[%clk 0:01:38.1]} 31. Kh1 {[%clk 0:00:43.6]} 31... Re2 {[%clk 0:01:38.5]} 32.
Rxb7 {[%clk 0:00:24.5]} 32... Rh2# {[%clk 0:01:34.9]} 0-1

[Event "*** Titled Tuesday Blitz"]
[Site "Chess.com"]
[Date "2021.03.09"]
[Round "3"]
[White "bogcsab"]
[Black "PavelChernomordik"]
[Result "0-1"]
[WhiteElo "2172"]
[BlackElo "2376"]
[TimeControl "180+1"]
[EndTime "10:27:25 PST"]
[Termination "PavelChernomordik won on time"]

1. e4 {[%clk 0:02:59.4]} 1... g6 {[%clk 0:02:59.6]} 2. d4 {[%clk 0:02:58.8]}
2... Bg7 {[%clk 0:02:59.1]} 3. c4 {[%clk 0:02:58.2]} 3... Nc6 {[%clk 0:02:58.5]}
4. Ne2 {[%clk 0:02:57.6]} 4... e5 {[%clk 0:02:56.6]} 5. Be3 {[%clk 0:02:54.4]}
5... exd4 {[%clk 0:02:55.6]} 6. Nxd4 {[%clk 0:02:53.9]} 6... Qf6 {[%clk
0:02:55.6]} 7. Nxc6 {[%clk 0:02:35.5]} 7... dxc6 {[%clk 0:02:54.2]} 8. Nc3
{[%clk 0:02:31.5]} 8... Qe7 {[%clk 0:02:53.8]} 9. Bd3 {[%clk 0:02:19.3]} 9...
Nf6 {[%clk 0:02:52.9]} 10. f3 {[%clk 0:02:11.7]} 10... O-O {[%clk 0:02:49.4]}
11. Qc2 {[%clk 0:02:07.1]} 11... Nh5 {[%clk 0:02:43.4]} 12. g4 {[%clk
0:01:58.7]} 12... Nf6 {[%clk 0:02:27.5]} 13. O-O-O {[%clk 0:01:54.7]} 13... a6
{[%clk 0:02:18.9]} 14. h4 {[%clk 0:01:53.7]} 14... h5 {[%clk 0:02:15.8]} 15. g5
{[%clk 0:01:40.6]} 15... Nd7 {[%clk 0:02:14.6]} 16. f4 {[%clk 0:01:36.9]} 16...
Nc5 {[%clk 0:02:07.4]} 17. Bxc5 {[%clk 0:01:26]} 17... Qxc5 {[%clk 0:02:05.8]}
18. f5 {[%clk 0:01:25.6]} 18... Be5 {[%clk 0:02:01.2]} 19. f6 {[%clk 0:01:13.8]}
19... Bg4 {[%clk 0:01:59.8]} 20. Be2 {[%clk 0:00:47.8]} 20... Be6 {[%clk
0:01:58.1]} 21. Rdg1 {[%clk 0:00:30.6]} 21... Bxc4 {[%clk 0:01:50.9]} 22. Bxh5
{[%clk 0:00:11.7]} 22... Qe3+ {[%clk 0:01:46.5]} 23. Kd1 {[%clk 0:00:05.3]}
23... Rad8+ {[%clk 0:01:40.1]} 24. Nd5 {[%clk 0:00:05]} 24... cxd5 {[%clk
0:01:39.6]} 0-1

[Event "*** Titled Tuesday Blitz"]
[Site "Chess.com"]
[Date "2021.03.09"]
[Round "3"]
[White "andriipalchuk"]
[Black "hansen"]
[Result "0-1"]
[WhiteElo "2557"]
[BlackElo "2851"]
[TimeControl "180+1"]
[EndTime "10:27:28 PST"]
[Termination "hansen won by resignation"]

1. d4 {[%clk 0:02:29.9]} 1... Nf6 {[%clk 0:03:00]} 2. c4 {[%clk 0:02:27.4]} 2...
g6 {[%clk 0:02:57]} 3. Nf3 {[%clk 0:02:22.7]} 3... Bg7 {[%clk 0:02:56.1]} 4. g3
{[%clk 0:02:23.6]} 4... O-O {[%clk 0:02:55.5]} 5. Bg2 {[%clk 0:02:24.2]} 5... d5
{[%clk 0:02:52.4]} 6. O-O {[%clk 0:02:23.7]} 6... dxc4 {[%clk 0:02:50.7]} 7. Na3
{[%clk 0:02:24.3]} 7... c3 {[%clk 0:02:50]} 8. bxc3 {[%clk 0:02:25]} 8... c5
{[%clk 0:02:45.8]} 9. e3 {[%clk 0:02:15.4]} 9... Nc6 {[%clk 0:02:43.6]} 10. Qe2
{[%clk 0:02:14.4]} 10... Bf5 {[%clk 0:02:38.4]} 11. Rd1 {[%clk 0:02:06.5]} 11...
cxd4 {[%clk 0:02:31.1]} 12. cxd4 {[%clk 0:01:46.3]} 12... Be4 {[%clk 0:02:30.2]}
13. Bd2 {[%clk 0:01:39.7]} 13... Rc8 {[%clk 0:02:21.4]} 14. Rac1 {[%clk
0:01:36.2]} 14... Qd5 {[%clk 0:02:18.6]} 15. Nb5 {[%clk 0:01:24.8]} 15... Qxa2
{[%clk 0:01:50.4]} 16. Nc3 {[%clk 0:01:23.5]} 16... Qb2 {[%clk 0:01:37.5]} 17.
Nxe4 {[%clk 0:01:08.7]} 17... Nxe4 {[%clk 0:01:37.2]} 18. Ne5 {[%clk 0:00:59]}
18... Nxd4 {[%clk 0:01:03.2]} 19. exd4 {[%clk 0:00:47.3]} 19... Rxc1 {[%clk
0:01:03.4]} 20. Bxe4 {[%clk 0:00:23.3]} 20... Rxd1+ {[%clk 0:01:03.2]} 21. Qxd1
{[%clk 0:00:24.2]} 21... Qxd4 {[%clk 0:01:03.6]} 0-1

[Event "*** Titled Tuesday Blitz"]
[Site "Chess.com"]
[Date "2021.03.09"]
[Round "3"]
[White "pirulillo"]
[Black "Gusarov91"]
[Result "0-1"]
[WhiteElo "2248"]
[BlackElo "2533"]
[TimeControl "180+1"]
[EndTime "10:27:30 PST"]
[Termination "Gusarov91 won by resignation"]

1. e4 {[%clk 0:03:00.1]} 1... c5 {[%clk 0:02:51.6]} 2. Nf3 {[%clk 0:02:57.5]}
2... d6 {[%clk 0:02:52]} 3. d4 {[%clk 0:02:46.6]} 3... cxd4 {[%clk 0:02:52.9]}
4. Nxd4 {[%clk 0:02:46.4]} 4... Nf6 {[%clk 0:02:53.3]} 5. Nc3 {[%clk 0:02:45.8]}
5... a6 {[%clk 0:02:53.7]} 6. Be2 {[%clk 0:02:44.6]} 6... e5 {[%clk 0:02:52.9]}
7. Nb3 {[%clk 0:02:44]} 7... Be7 {[%clk 0:02:53.3]} 8. Be3 {[%clk 0:02:42.6]}
8... O-O {[%clk 0:02:53.9]} 9. g4 {[%clk 0:02:38.6]} 9... Be6 {[%clk 0:02:51.1]}
10. g5 {[%clk 0:02:36.8]} 10... Nfd7 {[%clk 0:02:50.7]} 11. Qd2 {[%clk 0:02:36]}
11... Nc6 {[%clk 0:02:50.9]} 12. h4 {[%clk 0:02:35.2]} 12... Rc8 {[%clk
0:02:49.9]} 13. O-O-O {[%clk 0:02:33.9]} 13... b5 {[%clk 0:02:49.4]} 14. Nd5
{[%clk 0:02:29.5]} 14... Bxd5 {[%clk 0:02:37.1]} 15. exd5 {[%clk 0:02:30.4]}
15... Ncb8 {[%clk 0:02:37.1]} 16. Kb1 {[%clk 0:02:29.5]} 16... Nb6 {[%clk
0:02:37]} 17. Na5 {[%clk 0:02:27.9]} 17... Na4 {[%clk 0:02:24.3]} 18. Bf3 {[%clk
0:02:22.1]} 18... Nc3+ {[%clk 0:02:23.2]} 19. bxc3 {[%clk 0:02:20]} 19... Qxa5
{[%clk 0:02:23.3]} 20. Kb2 {[%clk 0:02:12]} 20... Nd7 {[%clk 0:02:10.9]} 21. Bg4
{[%clk 0:02:07.4]} 21... Rc7 {[%clk 0:01:59.6]} 22. Bxd7 {[%clk 0:02:05.8]}
22... Rxd7 {[%clk 0:01:59.6]} 23. c4 {[%clk 0:02:04.1]} 23... Qxd2 {[%clk
0:01:53.6]} 24. Rxd2 {[%clk 0:02:03.1]} 24... bxc4 {[%clk 0:01:54.5]} 25. Kc3
{[%clk 0:02:02.9]} 25... Rc8 {[%clk 0:01:52.3]} 26. Rb1 {[%clk 0:02:02.8]} 26...
Bd8 {[%clk 0:01:52.6]} 27. Re2 {[%clk 0:01:25.4]} 27... Ba5+ {[%clk 0:01:42.7]}
28. Kb2 {[%clk 0:01:24.6]} 28... Rb7+ {[%clk 0:01:36.6]} 29. Kc1 {[%clk
0:01:23.2]} 29... Rxb1+ {[%clk 0:01:37.5]} 30. Kxb1 {[%clk 0:01:22.8]} 30...
Rb8+ {[%clk 0:01:38.4]} 31. Kc1 {[%clk 0:01:17.1]} 31... Rb5 {[%clk 0:01:39.3]}
0-1